fUSD/lending_fUSD_20251113
["ID","MTS","AMOUNT","RATE_DAILY","PERIOD"]
[393805625,1763013032969,-500.0,0.00017999,2]
[393805626,1763013032984,-500.0,0.00017999,2]
[393805627,1763013032993,-500.0,0.00017999,2]
[393805628,1763013033003,-500.0,0.00017999,2]
[393805629,1763013033013,-500.0,0.00017999,2]
[393805630,1763013033022,-500.0,0.00017999,2]
[393805631,1763013033032,-500.0,0.00017999,2]
[393805632,1763013033042,-500.0,0.00017999,2]
[393805633,1763013033052,-500.0,0.00017999,2]
[393805634,1763013033062,-500.0,0.00017999,2]
[393805635,1763013033072,-500.0,0.00017999,2]
[393805636,1763013033081,-500.0,0.00017999,2]
[393805637,1763013033091,-500.0,0.00017999,2]
[393805638,1763013033100,-500.0,0.00017999,2]
[393805639,1763013033110,-389.08604749,0.00017999,2]
[393805640,1763013033120,-499.99999999,0.00017999,2]
[393805641,1763013033130,-500.0,0.00017999,2]
[393805642,1763013033140,-500.0,0.00017999,2]
[393805643,1763013033150,-500.0,0.00017999,2]
[393805644,1763013033159,-500.0,0.00017999,2]
[393805645,1763013033171,-593.31377912,0.00017999,2]
[393805646,1763013033182,-224.92884361,0.00017999,2]
[393805647,1763013033191,-331810.24256174,0.00018,2]
[393805648,1763013033203,-181224.9247116,0.00018,2]
[393805650,1763013037781,-2110.02499968,0.00018,2]
[393805651,1763013037840,-1513.88525483,0.00018,2]
[393805652,1763013037852,-22434.50328379,0.00018,2]
[393805653,1763013038009,-1816.08454568,0.00018,2]
[393805654,1763013038022,-850.00000017,0.00018,2]
[393805671,1763013040157,-1024.75,0.00018,2]
[393805672,1763013040216,-56558.73730898,0.00018,2]
[393805696,1763013043124,-316.19438762,0.00018,2]
[393805704,1763013046006,-1080.0,0.00018,2]
[393805705,1763013046044,-377.0455958,0.00018,2]
[393805706,1763013046272,-311.86757091,0.00018,2]
[393805707,1763013046326,-439.323393,0.00018,2]
[393805718,1763013125244,500.0,0.00040713,30]
[393805719,1763013125336,500.0,0.00040713,30]
[393805720,1763013125869,500.0,0.00040713,30]
[393805721,1763013126001,500.0,0.00040713,30]
[393805722,1763013126474,500.0,0.00040713,30]
[393805723,1763013132406,500.0,0.00040713,30]
[393805724,1763013133043,500.0,0.00040713,30]
[393805726,1763013138100,151.0,0.00040713,30]
[393805727,1763013139072,151.0,0.00040713,30]
[393805728,1763013139430,151.0,0.00040713,30]
[393805729,1763013140563,151.0,0.00040713,30]
[393805730,1763013141292,151.0,0.00040713,30]
[393805731,1763013141918,151.0,0.00040713,30]
[393805732,1763013142548,151.0,0.00040713,30]
[393805733,1763013143173,151.0,0.00040713,30]
[393805734,1763013143803,151.0,0.00040713,30]
[393805735,1763013144419,151.0,0.00040713,30]
[393805736,1763013145024,151.0,0.00040713,30]
[393805737,1763013145650,151.0,0.00040713,30]
[393805738,1763013146264,151.0,0.00040713,30]
[393805739,1763013146887,151.0,0.00040713,30]
[393805740,1763013147482,151.0,0.00040713,30]
[393805742,1763013148086,151.0,0.00040713,30]
[393805743,1763013148675,151.0,0.00040713,30]
[393805744,1763013149509,151.0,0.00040713,30]
[393805745,1763013150435,151.0,0.00040713,30]
[393805748,1763013151129,151.0,0.00040713,30]
[393805755,1763013162563,502.79552827,0.00040713,30]
[393805757,1763013425161,500.0,0.00040713,30]
[393805758,1763013425763,500.0,0.00040713,30]
[393805759,1763013426213,500.0,0.00040713,30]
[393805760,1763013426833,500.0,0.00040713,30]
[393805761,1763013427490,500.0,0.00040713,30]
[393805762,1763013428096,500.0,0.00040713,30]
[393805763,1763013428713,500.0,0.00040713,30]
[393805764,1763013429501,151.0,0.00040713,30]
[393805765,1763013429669,500.0,0.00040713,30]
[393805766,1763013429752,151.0,0.00040713,30]
[393805767,1763013430142,510.10538065,0.00040713,30]
[393805768,1763013430259,500.0,0.00040713,30]
[393805769,1763013430519,151.0,0.00040713,30]
[393805770,1763013430812,500.0,0.00040713,30]
[393805771,1763013430986,151.0,0.00040713,30]
[393805772,1763013431580,151.0,0.00040713,30]
[393805773,1763013432188,151.0,0.00040713,30]
[393805774,1763013432793,151.0,0.00040713,30]
[393805775,1763013433417,151.0,0.00040713,30]
[393805776,1763013434048,151.0,0.00040713,30]
[393805777,1763013435983,500.0,0.00040713,30]
[393805778,1763013436588,500.0,0.00040713,30]
[393805779,1763013437228,500.0,0.00040713,30]
[393805782,1763013591601,306.23,0.00013699,2]
[393805784,1763013725554,500.0,0.0004071,30]
[393805785,1763013725701,520.0,0.0004071,30]
[393805786,1763013726325,520.0,0.0004071,30]
[393805787,1763013726663,500.0,0.0004071,30]
[393805788,1763013727332,500.0,0.0004071,30]
[393805789,1763013728206,500.0,0.0004071,30]
[393805790,1763013728722,500.0,0.0004071,30]
[393805791,1763013729325,500.0,0.0004071,30]
[393805792,1763013729423,518.5,0.0004071,30]
[393805793,1763013729984,500.0,0.0004071,30]
[393805794,1763013730681,500.0,0.0004071,30]
[393805795,1763013731338,500.0,0.0004071,30]
[393805796,1763013732174,500.0,0.0004071,30]
[393805797,1763013732666,500.0,0.0004071,30]
[393805798,1763013733254,500.0,0.0004071,30]
[393805799,1763013733901,300.0,0.0004071,30]
[393805800,1763013734518,311.1,0.0004071,30]
[393805801,1763013735115,311.1,0.0004071,30]
[393805802,1763013739553,500.0,0.0004071,30]
[393805803,1763013740163,500.0,0.0004071,30]
[393805804,1763013741548,500.0,0.0004071,30]
[393805805,1763013742590,500.0,0.0004071,30]
[393805806,1763013742844,500.0,0.0004071,30]
[393805807,1763013807930,200.0,0.00013588,2]
[393805808,1763013808522,200.0,0.00013589,2]
[393805809,1763013808807,200.0,0.00013589,2]
[393805811,1763013878744,493.4326,0.0004071,30]
[393805812,1763013945258,1494.79,0.00016438,2]
[393805813,1763013971014,150.0,0.000162,2]
[393805814,1763013971084,150.0,0.00016272,2]
[393805815,1763013971153,150.0,0.00016344,2]
[393805816,1763013971236,150.0,0.00016416,2]
[393805817,1763013971298,150.0,0.00016488,2]
[393805818,1763013971332,150.0,0.0001656,2]
[393805819,1763013971388,150.0,0.00016632,2]
[393805820,1763013971462,150.0,0.00016704,2]
[393805821,1763013971526,150.0,0.00016776,2]
[393805822,1763013971594,150.0,0.00016848,2]
[393805823,1763013971742,150.0,0.00016992,2]
[393805824,1763013971808,150.0,0.0001692,2]
[393805826,1763014027914,500.0,0.0004071,30]
[393805827,1763014028001,500.0,0.0004071,30]
[393805828,1763014028715,518.5,0.0004071,30]
[393805829,1763014028830,500.0,0.0004071,30]
[393805830,1763014029029,592.50286859,0.0004071,30]
[393805831,1763014029137,500.0,0.0004071,30]
[393805832,1763014029236,518.5,0.0004071,30]
[393805833,1763014029335,500.0,0.0004071,30]
[393805834,1763014029668,500.0,0.0004071,30]
[393805835,1763014029866,500.0,0.0004071,30]
[393805836,1763014030295,500.0,0.0004071,30]
[393805837,1763014030560,500.0,0.0004071,30]
[393805838,1763014030848,500.0,0.0004071,30]
[393805839,1763014030951,500.0,0.0004071,30]
[393805840,1763014031172,500.0,0.0004071,30]
[393805841,1763014031458,500.0,0.0004071,30]
[393805842,1763014031601,500.0,0.0004071,30]
[393805843,1763014031800,500.0,0.0004071,30]
[393805844,1763014032105,500.0,0.0004071,30]
[393805845,1763014032202,500.0,0.0004071,30]
[393805846,1763014032291,300.0,0.0004071,30]
[393805847,1763014032425,500.0,0.0004071,30]
[393805848,1763014032891,500.0,0.0004071,30]
[393805849,1763014033087,300.0,0.0004071,30]
[393805850,1763014038766,-150.0,0.00017064,2]
[393805851,1763014038788,-100.06854502,0.00017136,2]
[393805852,1763014068818,-49.93145498,0.00017136,2]
[393805853,1763014068840,-131.75432382,0.00017208,2]
[393805855,1763014111530,360.55,0.0004071,30]
[393805856,1763014129848,-234.18154421,0.00017121,2]
[393805857,1763014132515,-252.05463079,0.00017121,2]
[393805858,1763014132564,-18.24567618,0.00017208,2]
[393805859,1763014132604,-8.32544959,0.0001728,2]
[393805860,1763014158729,-141.67455041,0.0001728,2]
[393805861,1763014158750,-118.17004184,0.00017352,2]
[393805882,1763014221665,12722.0,0.0004071,120]
[393805894,1763014232203,-31.82995816,0.00017352,2]
[393805895,1763014232223,-150.0,0.00017424,2]
[393805896,1763014232240,-150.0,0.00017496,2]
[393805897,1763014232260,-150.0,0.00017568,2]
[393805898,1763014232276,-186.89858413,0.00017612,2]
[393805899,1763014232292,-150.0,0.0001764,2]
[393805900,1763014232307,-150.0,0.00017712,2]
[393805901,1763014232323,-150.0,0.00017784,2]
[393805902,1763014232339,-1200.0,0.00017798,2]
[393805903,1763014232360,-8000.26,0.00017799,2]
[393805905,1763014232378,-150.0,0.00017856,2]
[393805908,1763014232395,-300.0,0.00017897,2]
[393805911,1763014232412,-300.0,0.00017897,2]
[393805912,1763014232428,-550.0,0.00017899,2]
[393805913,1763014232443,-813.24845283,0.000179,2]
[393805914,1763014232458,-169.00794124,0.000179,2]
[393805915,1763014232474,-150.3854906,0.000179,2]
[393805916,1763014232490,-186.89858412,0.000179,2]
[393805917,1763014232508,-1000.0,0.000179,2]
[393805918,1763014232524,-2500.0,0.000179,2]
[393805920,1763014232545,-166.07270422,0.000179,2]
[393805921,1763014232562,-546.9205525,0.000179,2]
[393805922,1763014232579,-173.48270074,0.000179,2]
[393805923,1763014232595,-150.0,0.00017928,2]
[393805924,1763014232611,-501.96637021,0.00017973,2]
[393805925,1763014232627,-500.0,0.00017973,2]
[393805926,1763014232643,-505.17272992,0.00017973,2]
[393805927,1763014232657,-500.0,0.00017973,2]
[393805928,1763014232672,-500.0,0.00017973,2]
[393805929,1763014232843,-500.0,0.00017973,2]
[393805930,1763014232853,-245.01389386,0.00017973,2]
[393805931,1763014232866,-501.78961038,0.00017973,2]
[393805932,1763014232875,-235.63167332,0.00017973,2]
[393805933,1763014232887,-264.36832668,0.00017973,2]
[393805934,1763014232897,-151.0,0.00017989,2]
[393805935,1763014232907,-151.0,0.00017989,2]
[393805936,1763014232916,-151.0,0.00017989,2]
[393805937,1763014232925,-151.0,0.00017989,2]
[393805938,1763014232934,-151.0,0.00017989,2]
[393805939,1763014232944,-151.0,0.00017989,2]
[393805940,1763014232954,-151.0,0.00017989,2]
[393805941,1763014232967,-255.72336996,0.00017989,2]
[393805942,1763014232977,-500.0,0.00017999,2]
[393805943,1763014232986,-254.31149853,0.00017999,2]
[393805944,1763014232996,-637.84479076,0.00017999,2]
[393805945,1763014233007,-300.0,0.00017999,2]
[393805946,1763014233016,-300.0,0.00017999,2]
[393805947,1763014233026,-576.261,0.00017999,2]
[393805948,1763014233036,-500.0,0.00017999,2]
[393805949,1763014233047,-451.91969141,0.00017999,2]
[393805950,1763014233059,-500.0,0.00017999,2]
[393805951,1763014233068,-500.0,0.00017999,2]
[393805952,1763014233078,-500.0,0.00017999,2]
[393805953,1763014233087,-500.0,0.00017999,2]
[393805954,1763014233097,-500.0,0.00017999,2]
[393805955,1763014233107,-500.0,0.00017999,2]
[393805956,1763014233117,-500.0,0.00017999,2]
[393805957,1763014233126,-517.50055234,0.00017999,2]
[393805958,1763014233136,-447.62807937,0.00017999,2]
[393805959,1763014233145,-500.0,0.00017999,2]
[393805960,1763014233155,-500.0,0.00017999,2]
[393805961,1763014233165,-500.0,0.00017999,2]
[393805962,1763014233174,-500.0,0.00017999,2]
[393805963,1763014233184,-250.0,0.00017999,2]
[393805964,1763014233193,-500.0,0.00017999,2]
[393805965,1763014233203,-500.0,0.00017999,2]
[393805966,1763014233213,-500.0,0.00017999,2]
[393805967,1763014233222,-500.0,0.00017999,2]
[393805968,1763014233232,-500.0,0.00017999,2]
[393805969,1763014233243,-500.0,0.00017999,2]
[393805970,1763014233256,-561.43021534,0.00017999,2]
[393805971,1763014233266,-500.0,0.00017999,2]
[393805972,1763014233277,-500.0,0.00017999,2]
[393805973,1763014233287,-500.0,0.00017999,2]
[393805974,1763014233296,-192.17346893,0.00017999,2]
[393805975,1763014233306,-207.84222365,0.00017999,2]
[393805976,1763014233319,-292.15777635,0.00017999,2]
[393805977,1763014233329,-500.0,0.00017999,2]
[393805978,1763014233339,-500.0,0.00017999,2]
[393805979,1763014233348,-500.0,0.00017999,2]
[393805980,1763014233358,-500.0,0.00017999,2]
[393805981,1763014233368,-500.0,0.00017999,2]
[393805982,1763014233378,-186.28760173,0.00018,2]
[393805983,1763014233387,-97048.90149191,0.00018,2]
[393805984,1763014233399,-733713.27583338,0.00018,2]
[393806023,1763014240235,-3501.95252287,0.00018,2]
[393806024,1763014240295,-1777.1,0.00018,2]
[393806025,1763014240409,-3099.398,0.00018,2]
[393806028,1763014243196,-500.0,0.00017982,2]
[393806029,1763014243206,-249872.145,0.00018,2]
[393806317,1763014246267,-1019.8,0.00018,2]
[393806342,1763014246493,-21318.52900954,0.00018,2]
[393806345,1763014246504,-1361.07052103,0.00018,2]
[393806349,1763014246553,-254.45044272,0.00018,2]
[393806742,1763014309245,-459.50637106,0.0001764,2]
[393806743,1763014325204,500.0,0.0004071,120]
[393806744,1763014325293,500.0,0.0004071,120]
[393806745,1763014325690,540.31671778,0.0004071,120]
[393806746,1763014325810,500.0,0.0004071,120]
[393806747,1763014325904,500.0,0.0004071,120]
[393806748,1763014326457,500.0,0.0004071,120]
[393806749,1763014326553,500.0,0.0004071,120]
[393806750,1763014327119,500.0,0.0004071,120]
[393806751,1763014327210,500.0,0.0004071,120]
[393806752,1763014327808,500.0,0.0004071,120]
[393806753,1763014327898,500.0,0.0004071,120]
[393806754,1763014328046,500.0,0.0004071,120]
[393806755,1763014328470,500.0,0.0004071,120]
[393806756,1763014328567,500.0,0.0004071,120]
[393806757,1763014328669,500.0,0.0004071,120]
[393806758,1763014329083,500.0,0.0004071,120]
[393806759,1763014329183,500.0,0.0004071,120]
[393806760,1763014329278,500.0,0.0004071,120]
[393806761,1763014329706,500.0,0.0004071,120]
[393806762,1763014330722,500.0,0.0004071,120]
[393806763,1763014330837,500.0,0.0004071,120]
[393806764,1763014330974,500.0,0.0004071,120]
[393806765,1763014331083,500.0,0.0004071,120]
[393806766,1763014331276,500.0,0.0004071,120]
[393806767,1763014331370,500.0,0.0004071,120]
[393806768,1763014331588,500.0,0.0004071,120]
[393806769,1763014331722,500.0,0.0004071,120]
[393806770,1763014332212,500.0,0.0004071,120]
[393806771,1763014332829,500.0,0.0004071,120]
[393806772,1763014333478,500.0,0.0004071,120]
[393806773,1763014334081,500.0,0.0004071,120]
[393806774,1763014334699,500.0,0.0004071,120]
[393806775,1763014335374,500.0,0.0004071,120]
[393806776,1763014335992,500.0,0.0004071,120]
[393806777,1763014336637,500.0,0.0004071,120]
[393806778,1763014340662,500.0,0.0004071,120]
[393806779,1763014341339,500.0,0.0004071,120]
[393806780,1763014373296,180.29,0.00030137,120]
[393806781,1763014404263,-1.50262894,0.0001764,2]
[393806782,1763014404288,-2500.0,0.000179,2]
[393806783,1763014404312,-364.61370168,0.000179,2]
[393806784,1763014404337,-1000.0,0.000179,2]
[393806785,1763014412868,200.0,0.00017499,2]
[393806786,1763014425842,1000.0,0.000179,2]
[393806787,1763014426381,166.07270422,0.000179,2]
[393806788,1763014429766,-508.21564922,0.00017973,2]
[393806789,1763014443385,7427.70983857,0.000179,2]
[393806790,1763014450635,-1095.0,0.00017997,2]
[393806791,1763014450666,-150.0,0.00017998,2]
[393806792,1763014450701,-300.0,0.00017998,2]
[393806793,1763014450732,-256.42545363,0.00017999,2]
[393806794,1763014450765,-300.0,0.00017999,2]
[393806795,1763014451888,2500.0,0.000179,2]
[393806796,1763014454053,243.07580112,0.000179,2]
[393806797,1763014488519,-20581.16676541,0.00018,2]
[393806798,1763014489259,-277.24110556,0.00018,2]
[393806799,1763014493085,-273.76431158,0.00018,2]
[393806800,1763014494571,-306.51349109,0.00018,2]
[393806801,1763014497653,-416.04224315,0.00018,2]
[393806802,1763014501444,-151.0,0.000179,2]
[393806803,1763014503979,-13.63428966,0.000179,2]
[393806804,1763014504005,-138.18121292,0.00017999,2]
[393806805,1763014510670,-500.0,0.000179,2]
[393806806,1763014512837,-161.15,0.000179,2]
[393806807,1763014517094,-234.19055155,0.000179,2]
[393806808,1763014518587,-347.42783103,0.000179,2]
[393806809,1763014520500,-166.66,0.000179,2]
[393806810,1763014525393,-167.49177185,0.000179,2]
[393806811,1763014528894,-151.0,0.00017705,2]
[393806812,1763014528918,-117.02000949,0.000179,2]
[393806813,1763014532909,-251.82618244,0.000179,2]
[393806814,1763014536080,-182.94134438,0.000179,2]
[393806815,1763014537002,388.0,0.00030136,120]
[393806816,1763014541257,-200.0,0.000179,2]
[393806817,1763014543303,-348.07437606,0.000179,2]
[393806818,1763014545202,-151.0,0.00017329,2]
[393806819,1763014545226,-6.09321931,0.000179,2]
[393806820,1763014550658,-159.46214866,0.000179,2]
[393806821,1763014551876,-393.10992567,0.000179,2]
[393806822,1763014557230,-159.93849102,0.000179,2]
[393806823,1763014559877,-4648.61862183,0.000179,2]
[393806824,1763014559901,-156.13443063,0.000179,2]
[393806825,1763014561023,151.0,0.0001705,2]
[393806826,1763014561781,-151.0,0.00017997,2]
[393806827,1763014561804,-161.81878708,0.00017999,2]
[393806828,1763014561825,-11.44136853,0.00017999,2]
[393806829,1763014569124,-183.45986164,0.00017998,2]
[393806830,1763014572570,919.2182,0.000179,2]
[393806831,1763014573229,-116.54013836,0.00017998,2]
[393806832,1763014573258,-189.04323548,0.00017999,2]
[393806833,1763014574707,-99.51539599,0.00017999,2]
[393806834,1763014574730,-85.60975316,0.00017999,2]
[393806835,1763014576798,-202.60667225,0.00017999,2]
[393806836,1763014577360,151.0,0.00017012,2]
[393806837,1763014579439,150.3854906,0.000179,2]
[393806838,1763014584282,162.05053408,0.000179,2]
[393806839,1763014584709,-168.01771914,0.00017999,2]
[393806840,1763014589531,-313.20967087,0.00017999,2]
[393806841,1763014591534,-345.2269627,0.00017999,2]
[393806842,1763014593213,-85.32922188,0.00017999,2]
[393806843,1763014593237,-300.0,0.00017999,2]
[393806844,1763014593260,-151.03301048,0.00017999,2]
[393806845,1763014593923,151.0,0.00016979,2]
[393806846,1763014597172,1000.0,0.000179,2]
[393806847,1763014597425,-222.31368314,0.00017999,2]
[393806848,1763014598873,-126.65330638,0.00017999,2]
[393806849,1763014598906,-46.76415307,0.00017999,2]
[393806850,1763014602998,-250.0,0.00017999,2]
[393806851,1763014605799,-189.3898933,0.00017999,2]
[393806852,1763014605821,-5.02673286,0.00017999,2]
[393806853,1763014608542,-258.36779592,0.00017999,2]
[393806854,1763014609967,-124.2754944,0.00017999,2]
[393806855,1763014609993,-46.79681682,0.00017999,2]
[393806856,1763014613800,-151.0,0.00017181,2]
[393806857,1763014613829,-227.93722038,0.00017999,2]
[393806858,1763014617528,-186.7934101,0.00017999,2]
[393806859,1763014621280,-38.4725527,0.00017999,2]
[393806860,1763014621304,-229.81916735,0.00017999,2]
[393806861,1763014625136,-239.07632358,0.000179,2]
[393806862,1763014625839,500.0,0.0004071,120]
[393806863,1763014626502,500.0,0.0004071,120]
[393806864,1763014627089,500.0,0.0004071,120]
[393806865,1763014627746,500.0,0.0004071,120]
[393806866,1763014628339,500.0,0.0004071,120]
[393806867,1763014628434,500.0,0.0004071,120]
[393806868,1763014628515,500.0,0.0004071,120]
[393806869,1763014629014,500.0,0.0004071,120]
[393806870,1763014629097,500.0,0.0004071,120]
[393806871,1763014629185,500.0,0.0004071,120]
[393806872,1763014629696,500.0,0.0004071,120]
[393806873,1763014629732,-151.0,0.00017323,2]
[393806874,1763014629754,-149.0,0.000179,2]
[393806875,1763014630034,500.0,0.0004071,120]
[393806876,1763014630340,500.0,0.0004071,120]
[393806877,1763014630688,500.0,0.0004071,120]
[393806878,1763014631050,500.0,0.0004071,120]
[393806879,1763014631252,155.0,0.00030136,120]
[393806880,1763014631564,500.0,0.0004071,120]
[393806881,1763014631705,500.0,0.0004071,120]
[393806882,1763014631738,-231.2840348,0.000179,2]
[393806883,1763014632231,500.0,0.0004071,120]
[393806884,1763014632396,500.0,0.0004071,120]
[393806885,1763014632890,500.0,0.0004071,120]
[393806886,1763014632972,500.0,0.0004071,120]
[393806887,1763014633085,500.0,0.0004071,120]
[393806888,1763014633502,500.0,0.0004071,120]
[393806889,1763014633599,500.0,0.0004071,120]
[393806890,1763014633960,500.0,0.0004071,120]
[393806891,1763014634126,-223.79083612,0.000179,2]
[393806892,1763014634262,500.0,0.0004071,120]
[393806893,1763014634940,500.0,0.0004071,120]
[393806894,1763014635528,500.0,0.0004071,120]
[393806895,1763014636140,500.0,0.0004071,120]
[393806896,1763014636782,500.0,0.0004071,120]
[393806897,1763014637451,500.0,0.0004071,120]
[393806898,1763014637622,-195.0,0.000179,2]
[393806899,1763014638072,500.0,0.0004071,120]
[393806900,1763014638721,500.0,0.0004071,120]
[393806901,1763014639341,500.0,0.0004071,120]
[393806902,1763014640952,-181.61726826,0.000179,2]
[393806903,1763014643408,514.84070869,0.0004071,120]
[393806904,1763014645142,-151.0,0.00017358,2]
[393806905,1763014645165,-142.80875223,0.000179,2]
[393806906,1763014647846,-195.55406139,0.000179,2]
[393806907,1763014654012,-254.31149853,0.000179,2]
[393806908,1763014656062,-333.34,0.000179,2]
[393806909,1763014661482,-151.0,0.00017364,2]
[393806910,1763014661504,-47.33516949,0.000179,2]
[393806911,1763014662881,-284.62903412,0.000179,2]
[393806912,1763014664946,-22.25302148,0.000179,2]
[393806913,1763014664969,-255.45361331,0.00017973,2]
[393806914,1763014669586,-154.10695342,0.00017973,2]
[393806915,1763014672092,-161.92367642,0.00017973,2]
[393806916,1763014674242,-166.66,0.00017973,2]
[393806917,1763014676887,-164.63428964,0.000179,2]
[393806918,1763014676909,-3.1236341,0.00017973,2]
[393806919,1763014678842,-151.0,0.0001719,2]
[393806920,1763014678865,-65.03,0.00017973,2]
[393806921,1763014687401,-222.29336538,0.00017973,2]
[393806922,1763014694284,-158.57169002,0.00017973,2]
[393806923,1763014701713,-151.0,0.00016926,2]
[393806924,1763014701735,-70.30878051,0.00017973,2]
[393806925,1763014703135,-289.34486592,0.00017973,2]
[393806927,1763014704694,-267.8046023,0.00017973,2]
[393806928,1763014709455,-163.99692755,0.00017973,2]
[393806929,1763014711976,-151.0,0.00016657,2]
[393806930,1763014711999,-81.1953977,0.00017973,2]
[393806931,1763014718163,-334.20877789,0.00017973,2]
[393806932,1763014719923,-208.31562116,0.00017973,2]
[393806933,1763014725157,-170.27333368,0.00017973,2]
[393806934,1763014727178,-218.29082256,0.00017973,2]
[393806935,1763014732998,-151.0,0.00016481,2]
[393806936,1763014733019,-30.61726826,0.00017973,2]
[393806937,1763014734562,-241.06101562,0.00017973,2]
[393806938,1763014737209,-220.44000221,0.00017973,2]
[393806939,1763014740786,-165.06162252,0.00017973,2]
[393806940,1763014742822,-321.12837123,0.00017973,2]
[393806941,1763014744760,-151.0,0.00016483,2]
[393806942,1763014744783,-43.43675275,0.00017973,2]
[393806943,1763014750552,-386.35290549,0.00017973,2]
[393806944,1763014750573,-78.0383873,0.00017973,2]
[393806945,1763014753257,-170.17901379,0.00017973,2]
[393806946,1763014757428,-187.11921967,0.00017973,2]
[393806947,1763014760008,-71.66337924,0.00017973,2]
[393806948,1763014760031,-228.33662076,0.00017986,2]
[393806949,1763014761026,151.0,0.0001657,2]
[393806950,1763014765480,-160.59,0.000179,2]
[393806951,1763014765502,-21.66337924,0.00017986,2]
[393806952,1763014765524,-19.98119276,0.00017998,2]
[393806953,1763014769286,-193.38639401,0.000179,2]
[393806954,1763014773247,-406.17371133,0.000179,2]
[393806955,1763014777765,-180.42063896,0.000179,2]
[393806956,1763014778703,151.0,0.00016901,2]
[393806957,1763014780827,-220.0192557,0.000179,2]
[393806958,1763014780849,-280.01880724,0.00017998,2]
[393806959,1763014780871,-7.41698881,0.00017999,2]
[393806960,1763014783951,-292.58301119,0.00017999,2]
[393806961,1763014783985,-10.87974489,0.00017999,2]
[393806962,1763014789536,-151.55243496,0.000179,2]
[393806963,1763014792712,-154.0,0.00017,2]
[393806964,1763014797674,-96.0,0.00017,2]
[393806965,1763014797696,-121.3780594,0.0001715,2]
[393806966,1763014799625,-29.6219406,0.0001715,2]
[393806967,1763014799647,-335.6219406,0.000179,2]
[393806968,1763014801868,-373.00784012,0.000179,2]
[393806969,1763014806021,-199.45083143,0.000179,2]
[393806971,1763014807920,-151.0,0.000179,2]
[393806972,1763014813934,-151.0,0.00017402,2]
[393806973,1763014813959,-15.66,0.000179,2]
[393806974,1763014816302,-168.0,0.000179,2]
[393806975,1763014817711,-151.0,0.000179,2]
[393806976,1763014822173,-155.39013836,0.000179,2]
[393806977,1763014824183,-195.0,0.000179,2]
[393806978,1763014825587,-188.54130841,0.000179,2]
[393806979,1763014829844,-151.0,0.00017647,2]
[393806980,1763014829867,-231.30782447,0.000179,2]
[393806981,1763014832837,-183.21754022,0.000179,2]
[393806982,1763014838088,-1.25014143,0.000179,2]
[393806983,1763014838113,-165.12203592,0.000179,2]
[393806984,1763014838136,-20.33053809,0.00017973,2]
[393806985,1763014840801,-207.28492495,0.00017973,2]